bitfinex-derivatives/quotes_ETHF0:USTF0_20250101
["timestamp","ask_amount","ask_price","bid_price","bid_amount"]
[1735737184074,0.29998,3340.4,3340.3,0.29997]
[1735737185173,2.2624163,3340.7,3340.2,4.1307]
[1735737185368,0.29997,3340.5,3340.4,0.29997]
[1735737185774,0.29996,3340.6,3340.5,0.29996]
[1735737188370,3.2078,3341.0,3340.2,4.1307]
[1735737188580,0.29994,3340.9,3340.8,0.29993]
[1735737190275,0.73831,3341.2,3340.7,3.2078]
[1735737190476,0.4384,3341.2,3341.1,0.29991]
[1735737190776,3.2078,3341.4,3340.8,1.66755]
[1735737190972,3.0007163,3341.3,3341.2,0.2999]
[1735737191169,0.29992,3341.0,3340.9,0.29993]
[1735737191475,0.29993,3340.9,3340.8,1.21763]
[1735737193470,0.29993,3340.9,3340.8,0.9177]
[1735737194878,0.29993,3340.9,3340.8,1.21764]
[1735737195073,0.29993,3340.9,3340.8,0.9177]
[1735737195780,0.29993,3340.9,3340.8,1.21764]
[1735737197285,0.29991,3341.1,3341.0,0.29991]
[1735737197573,0.29993,3341.0,3340.9,0.29993]
[1735737199380,0.4384,3341.3,3340.8,0.9177]
[1735737199679,0.29993,3340.9,3340.8,1.21763]
[1735737200679,0.29993,3341.0,3340.9,0.29992]
[1735737202284,0.29993,3340.9,3340.8,1.21764]
[1735737205381,0.29993,3340.9,3340.8,0.4515]
[1735737206586,0.29993,3340.9,3340.8,0.75144]
[1735737209285,0.4384,3341.3,3340.8,0.4515]
[1735737209492,0.2999,3341.2,3341.1,0.29991]
[1735737211385,3.6462,3341.3,3340.8,0.4515]
[1735737211688,0.29993,3341.0,3340.9,0.29992]
[1735737212087,0.29993,3340.9,3340.8,0.75143]
[1735737214685,0.29992,3341.1,3341.0,0.29991]
[1735737215891,3.6462,3341.3,3340.9,0.4215]
[1735737216083,0.29991,3341.2,3341.1,0.2999]
[1735737216990,0.4384,3341.3,3341.2,0.2999]
[1735737217189,0.73829,3341.3,3341.2,0.2999]
[1735737218592,0.4384,3341.3,3341.2,0.2999]
[1735737218898,0.29988,3341.6,3341.5,0.29987]
[1735737219490,3.2078,3341.7,3341.2,0.229]
[1735737219693,0.29988,3341.5,3341.4,0.29988]
[1735737220690,3.50766,3341.7,3341.6,0.29987]
[1735737222086,0.29988,3341.5,3341.4,0.4598]
[1735737222398,0.29988,3341.5,3341.4,0.47001448]
[1735737222596,0.29988,3341.5,3341.4,0.76989448]
[1735737222999,0.29987,3341.6,3341.5,0.29987]
[1735737223296,0.29987,3341.6,3341.5,0.31061851]
[1735737224198,0.29987,3341.6,3341.5,0.01074851]
[1735737224601,5.4702163,3341.7,3341.5,0.01246532]
[1735737224792,0.29987,3341.6,3341.5,0.01246532]
[1735737225290,0.29987,3341.6,3341.5,0.01418213]
[1735737225690,5.4702163,3341.7,3341.5,0.01589894]
[1735737225896,0.29987,3341.6,3341.5,0.01589894]
[1735737226291,5.4702163,3341.7,3341.5,0.01761583]
[1735737226499,0.29987,3341.6,3341.5,0.01761583]
[1735737226897,0.29987,3341.6,3341.5,0.31921272]
[1735737228097,0.29987,3341.6,3341.5,0.01933272]
[1735737241702,0.29987,3341.6,3341.5,0.31921272]
[1735737241906,0.29987,3341.6,3341.5,0.01933272]
[1735737246606,0.29987,3341.6,3341.1,0.449]
[1735737246607,0.2999,3341.2,3341.1,0.449]
[1735737246811,0.29993,3340.9,3340.8,5.15328723]
[1735737247011,2.5623463,3340.9,3340.8,5.46134498]
[1735737247314,2.5623463,3340.9,3340.8,5.15328723]
[1735737247514,2.5623463,3340.9,3340.8,5.46124532]
[1735737248013,2.5623463,3340.9,3340.8,0.75425809]
[1735737248913,2.5623463,3340.9,3340.8,0.76912594]
[1735737249216,2.5623463,3340.9,3340.8,0.46116785]
[1735737249615,2.5623463,3340.9,3340.8,0.78391767]
[1735737249817,2.5623463,3340.9,3340.8,0.78390807]
[1735737250113,2.5623463,3340.9,3340.8,0.48727007]
[1735737252313,2.5623463,3340.9,3340.8,0.50214611]
[1735737253018,0.29993,3340.9,3340.8,0.50214611]
[1735737254019,0.29993,3340.9,3340.8,0.51697364]
[1735737255210,0.29993,3340.9,3340.8,0.53178957]
[1735737256008,0.29993,3340.9,3340.8,0.4908195]
[1735737256311,0.29993,3340.9,3340.8,0.54660648]
[1735737256714,2.5623463,3340.9,3340.8,0.54660648]
[1735737256911,2.5623463,3340.9,3340.8,0.10030648]
[1735737258712,0.29998,3340.3,3340.2,0.4247]
[1735737258913,0.30002,3339.9,3339.7,3.2078]
[1735737259109,0.75733,3339.8,3339.7,3.2078]
[1735737259414,0.75733,3339.8,3339.7,44.0078]
[1735737260316,0.75733,3339.8,3339.7,44.4507]
[1735737265018,0.75733,3339.8,3339.7,3.2078]
[1735737265221,0.30005,3339.6,3339.5,0.4396]
[1735737265924,0.30005,3339.6,3339.5,0.45441231]
[1735737267121,3.6651,3339.8,3339.5,0.45441231]
[1735737267421,0.30003,3339.8,3339.6,0.4338]
[1735737267623,2.2624163,3340.0,3339.7,0.30004]
[1735737267920,0.30002,3339.9,3339.8,0.30002]
[1735737268122,2.5624263,3340.0,3339.8,0.31483231]
[1735737268328,0.30002,3339.9,3339.8,0.31483231]
[1735737268520,2.5624363,3340.0,3339.8,0.31483231]
[1735737268820,2.5624363,3340.0,3339.9,0.30001]
[1735737268821,0.30001,3340.0,3339.9,0.30001]
[1735737269027,0.30001,3340.0,3339.9,0.31482231]
[1735737269626,5.8933163,3340.3,3339.9,0.31482231]
[1735737269627,3.6309,3340.3,3339.9,0.01481231]
[1735737269828,3.93089,3340.3,3340.2,0.29999]
[1735737270128,3.93089,3340.3,3340.2,0.01481231]
[1735737274325,3.2078,3340.3,3340.2,0.31480231]
[1735737274629,0.72236,3340.6,3340.5,0.29997]
[1735737274820,0.72236,3340.6,3340.4,0.29997]
[1735737275021,0.72236,3340.6,3340.5,0.75248231]
[1735737275424,3.2078,3340.8,3340.5,0.45251231]
[1735737275730,0.29995,3340.7,3340.6,0.74325]
[1735737276124,0.29995,3340.7,3340.6,0.45811231]
[1735737276430,3.2078,3340.8,3340.6,0.45811231]
[1735737276730,0.29995,3340.7,3340.6,0.75806231]
[1735737280030,3.2078,3340.8,3340.6,0.45811231]
[1735737280234,3.50774,3340.8,3340.7,0.31476231]
[1735737280531,3.2078,3340.8,3340.7,0.31476231]
[1735737281933,0.29992,3341.1,3341.0,0.29992]
[1735737282130,0.29992,3341.1,3341.0,0.31473231]
[1735737283529,0.4398,3341.4,3341.0,0.01481231]
[1735737283736,0.29991,3341.2,3341.1,0.76551]
[1735737283939,0.29991,3341.2,3341.1,1.22591]
[1735737284436,0.29991,3341.2,3341.1,1.24072231]
[1735737287032,0.29991,3341.2,3341.1,0.94081231]
[1735737289235,2.5623263,3341.2,3341.1,0.47521231]
[1735737294338,2.2624163,3341.2,3339.9,3.2078]
[1735737294536,3.2078,3340.3,3340.2,0.29999]
[1735737294745,3.2078,3340.9,3340.1,0.4598]
[1735737294938,0.29996,3340.6,3340.5,0.29996]
[1735737296045,3.6437,3340.9,3340.1,0.4598]
[1735737296248,0.29997,3340.5,3340.4,0.29997]
[1735737296751,3.6437,3340.9,3340.1,0.4598]
[1735737296947,0.29997,3340.5,3340.4,0.29997]
[1735737298645,0.4648,3340.8,3340.1,1.6378]
[1735737298950,0.4648,3340.8,3340.2,0.30710619]
[1735737299144,0.29998,3340.3,3340.2,0.29999]
[1735737299346,0.4648,3340.8,3340.2,0.30717755]
[1735737299546,0.29998,3340.4,3340.3,0.29998]
[1735737300545,0.4648,3340.8,3340.1,1.6378]
[1735737300755,0.29998,3340.4,3340.3,0.29998]
[1735737301241,0.29998,3340.4,3340.3,41.09998]
[1735737302852,0.29998,3340.4,3340.3,40.8]
[1735737303050,1.21465,3340.8,3340.1,0.4598]
[1735737303051,2.2624163,3340.7,3340.1,0.4598]
[1735737303256,0.29999,3340.2,3340.1,0.4598]
[1735737303755,0.29999,3340.2,3340.1,41.2598]
[1735737303953,0.29999,3340.2,3340.1,0.4598]
[1735737304257,0.29999,3340.2,3340.1,1.06730628]
[1735737305455,0.29999,3340.2,3340.1,0.7598]
[1735737305657,0.29999,3340.2,3340.1,1.06728314]
[1735737306352,0.29999,3340.2,3340.1,1.0820587]
[1735737306752,0.29999,3340.2,3340.1,41.8820587]
[1735737307158,0.29999,3340.3,3340.2,0.29998]
[1735737307355,0.29999,3340.3,3340.2,0.31475556]
[1735737308260,0.29999,3340.3,3340.2,0.01477556]
[1735737308459,0.29999,3340.3,3340.2,0.31476556]
[1735737309160,0.29999,3340.3,3340.2,0.01477556]
[1735737309661,0.74991,3340.6,3340.2,0.02954187]
[1735737309961,0.29998,3340.3,3340.2,0.32953187]
[1735737312557,0.29998,3340.3,3340.2,0.04430818]
[1735737312960,0.29998,3340.3,3340.2,0.34429818]
[1735737313864,0.29998,3340.3,3340.2,0.04430818]
[1735737314166,0.29998,3340.3,3340.2,0.34429818]
[1735737315663,0.29998,3340.3,3340.2,0.35905523]
[1735737316264,1.37858775,3340.3,3340.2,0.35905523]
[1735737316558,1.37858775,3340.3,3340.2,0.05906523]
[1735737316765,1.37858775,3340.3,3340.2,0.36217874]
[1735737317062,1.37858775,3340.3,3340.2,0.06218874]
[1735737318160,1.83408775,3340.3,3340.2,0.06218874]
[1735737318474,1.83408775,3340.3,3340.2,0.0769471]
[1735737318864,0.75548,3340.3,3340.2,0.3769371]
[1735737319458,0.75548,3340.3,3340.2,0.39169546]
[1735737319760,0.75548,3340.3,3340.2,0.09170546]
[1735737320562,0.29997,3340.5,3340.4,0.29997]
[1735737320770,3.2078,3340.6,3340.5,0.29997]
[1735737321258,3.2078,3340.6,3340.5,41.09997]
[1735737321558,3.2078,3340.6,3340.5,1.26117546]
[1735737321865,3.2078,3340.6,3340.5,1.56871091]
[1735737322057,3.2078,3340.6,3340.5,1.56871101]
[1735737324672,3.2078,3340.6,3340.5,1.26117546]
[1735737324964,3.2078,3340.6,3340.5,1.56886513]
[1735737326161,3.2078,3340.6,3340.5,1.56885332]
[1735737327780,3.2078,3340.6,3340.5,1.26117546]
[1735737327967,3.2078,3340.6,3340.5,1.56882094]
[1735737328564,0.76124,3340.8,3340.5,1.26885094]
[1735737328565,0.4613,3340.8,3340.5,1.26885094]
[1735737328874,3.2078,3341.6,3340.7,5.48573785]
[1735737329066,0.73228,3341.5,3341.4,0.29988]
[1735737329573,0.73228,3341.5,3341.4,0.39158546]
[1735737329966,0.73228,3341.5,3341.4,0.09170546]
[1735737332766,0.73228,3341.5,3341.4,0.39158546]
[1735737336568,0.4324,3341.5,3341.4,0.39158546]
[1735737336763,0.76235,3341.8,3341.7,0.29986]
[1735737336965,0.76235,3341.8,3341.6,0.29986]
[1735737336966,0.29987,3341.7,3341.6,0.29986]
[1735737337571,0.29987,3341.7,3341.6,0.39156546]
[1735737337772,0.76235,3341.8,3341.7,0.29986]
[1735737337968,0.4509,3341.9,3341.8,0.29985]
[1735737338174,0.4509,3341.9,3341.8,0.76665]
[1735737338563,0.4509,3341.9,3341.8,0.85835546]
[1735737341476,0.29982,3342.1,3342.0,0.29983]
[1735737341778,0.73362,3342.2,3342.1,0.29982]
[1735737342075,0.4338,3342.2,3342.1,0.29982]
[1735737342676,0.73361,3342.2,3342.1,0.39152546]
[1735737342870,0.4338,3342.2,3342.1,0.39152546]
[1735737346276,3.2078,3342.5,3342.4,0.29979]
[1735737346678,3.2078,3342.5,3342.4,0.39149546]
[1735737346879,3.2078,3342.5,3342.4,41.19149546]
[1735737347281,0.29976,3342.9,3342.8,0.29975]
[1735737347877,0.4567,3343.0,3342.9,0.29975]
[1735737348078,0.4567,3343.0,3342.9,0.75235]
[1735737348680,0.75644,3343.0,3342.9,0.4526]
[1735737348882,0.29978,3342.6,3342.5,3.2078]
[1735737349771,0.29978,3342.6,3342.5,3.50759]
[1735737350082,0.29978,3342.6,3342.5,3.2078]
[1735737352385,0.29978,3342.6,3342.5,3.50759]
[1735737353883,0.4567,3343.0,3342.5,3.2078]
[1735737354187,0.29978,3342.7,3342.6,0.29977]
[1735737354395,0.29978,3342.6,3342.5,0.29978]
[1735737357183,0.29976,3342.8,3342.7,0.29976]
[1735737357583,0.29976,3342.8,3342.7,0.32182265]
[1735737358289,0.29976,3342.8,3342.7,0.33662986]
[1735737358485,0.4567,3343.0,3342.7,0.03686986]
[1735737358690,0.29976,3342.9,3342.8,0.78532655]
[1735737359385,0.29976,3342.9,3342.8,0.48557655]
[1735737361086,0.29976,3342.9,3342.8,0.05578248]
[1735737361882,0.29976,3342.9,3342.8,0.04097655]
[1735737362084,0.29976,3342.9,3342.8,0.07062833]
[1735737363093,0.29976,3342.9,3342.8,0.08543426]
[1735737364188,3.50756,3342.9,3342.8,0.08543426]
[1735737364494,3.50756,3342.9,3342.8,0.10021736]
[1735737364992,3.50756,3342.9,3342.8,0.11500046]
[1735737365792,3.50756,3342.9,3342.8,0.12978221]
[1735737366695,0.4567,3343.0,3342.9,0.29975]
[1735737366890,0.4567,3343.0,3342.9,0.74575]
[1735737367189,0.445,3343.2,3343.1,0.29973]
[1735737367391,1.19882,3343.2,3343.1,0.29973]
[1735737367584,1.19882,3343.2,3343.1,0.38167662]
[1735737367795,1.19882,3343.2,3343.1,0.42951221]
[1735737368091,1.19882,3343.2,3343.1,0.44432132]
[1735737368390,1.19882,3343.2,3343.1,0.14459132]
[1735737368993,1.19882,3343.2,3343.1,0.08194662]
[1735737369289,1.19882,3343.2,3343.1,0.45913043]
[1735737369594,1.19882,3343.2,3343.1,0.15940043]
[1735737370593,1.19882,3343.2,3343.1,0.45913043]
[1735737371196,1.19882,3343.2,3343.1,0.47393345]
[1735737371696,1.19882,3343.2,3343.1,0.48874673]
[1735737371891,0.4541,3343.2,3343.1,0.48874673]
[1735737372096,0.72639,3343.6,3343.1,3.85021673]
[1735737372285,0.72639,3343.6,3343.5,0.2997]
[1735737373092,0.72639,3343.6,3343.5,0.07745381]
[1735737373296,0.72639,3343.6,3343.5,0.6542705]
[1735737373893,0.72639,3343.6,3343.5,0.9539705]
[1735737374596,0.72639,3343.6,3343.5,0.96877962]
[1735737375494,0.72639,3343.6,3343.5,0.98358874]
[1735737375692,3.2078,3343.9,3343.5,0.68388874]
[1735737375893,0.29969,3343.7,3343.6,0.29968]
[1735737376391,0.29969,3343.7,3343.6,0.42259669]
[1735737376593,0.29969,3343.7,3343.6,0.52966874]
[1735737376794,0.29969,3343.7,3343.6,0.54446882]
[1735737377497,0.29969,3343.7,3343.6,0.5592689]
[1735737379202,0.29969,3343.7,3343.6,0.56104895]
[1735737379595,0.29969,3343.7,3343.6,1.016929]
[1735737379796,0.29967,3343.8,3343.7,0.29967]
[1735737379998,0.29967,3343.8,3343.7,0.74037]
[1735737380204,0.29967,3343.8,3343.7,0.86862684]
[1735737380396,3.95566,3344.0,3343.9,0.29966]
[1735737381300,3.95566,3344.0,3343.9,0.42791684]
[1735737381507,3.2078,3344.5,3343.9,0.26492905]
[1735737381803,0.4434,3344.9,3344.2,3.2078]
[1735737381998,0.29962,3344.3,3344.2,3.50743]
[1735737382301,0.29962,3344.3,3344.2,3.63746689]
[1735737382501,0.29962,3344.3,3344.2,3.7741391]
[1735737382903,0.29962,3344.4,3344.3,0.29962]
[1735737383498,0.29962,3344.4,3344.3,0.5698892]
[1735737384001,0.29962,3344.4,3344.3,0.2702692]
[1735737385024,0.73012,3344.4,3344.3,0.2702692]
[1735737385310,0.73012,3344.4,3344.3,0.28515245]
[1735737385705,0.29966,3343.9,3343.8,3.2078]
[1735737386601,0.29966,3343.9,3343.8,3.22268325]
[1735737386902,0.29966,3343.9,3343.8,0.01488325]
[1735737387111,0.29966,3343.9,3343.8,0.02975227]
[1735737387399,0.72956,3343.9,3343.8,0.02975227]
[1735737388405,0.72956,3343.9,3343.8,3.53722227]
[1735737388601,0.72956,3343.9,3343.8,0.02975227]
[1735737389203,0.2997,3343.5,3343.4,3.2078]
[1735737389799,0.2997,3343.5,3343.4,3.22258669]
[1735737391008,0.2997,3343.5,3343.4,3.23737338]
[1735737393197,0.2997,3343.5,3343.4,3.25223809]
[1735737393901,0.2997,3343.5,3343.4,3.2671028]
[1735737394507,0.2997,3343.5,3343.4,3.28196429]
[1735737395003,0.2997,3343.5,3343.4,3.24877007]
[1735737395306,0.2997,3343.5,3343.4,3.29682578]
[1735737395809,0.2997,3343.5,3343.4,3.31168551]
[1735737396402,0.2997,3343.5,3343.4,3.32654592]
[1735737397107,0.2997,3343.5,3343.4,3.34140633]
[1735737397610,0.2997,3343.5,3343.4,3.35626674]
[1735737398109,0.2997,3343.5,3343.4,3.37112715]
[1735737398711,0.2997,3343.5,3343.4,3.38598756]
[1735737399107,0.2997,3343.5,3343.4,3.40084797]
[1735737399710,0.2997,3343.5,3343.4,3.41425491]
[1735737401915,0.2997,3343.5,3343.4,0.20645491]
[1735737406328,0.2997,3343.5,3343.4,0.22125505]
[1735737407026,0.2997,3343.5,3343.4,0.23605519]
[1735737407421,0.2997,3343.5,3343.4,0.24742498]
[1735737409925,0.2997,3343.5,3343.4,0.26225889]
[1735737410328,0.2997,3343.5,3343.4,0.2770928]
[1735737411929,0.2997,3343.5,3343.4,0.29192671]
[1735737412743,0.2997,3343.5,3343.4,0.30676062]
[1735737414126,0.2997,3343.5,3343.4,0.31068668]
[1735737416124,0.29977,3342.7,3342.6,0.29977]
[1735737416332,0.29977,3342.7,3342.6,1.07045871]
[1735737416528,0.29977,3342.7,3342.6,0.74147]
[1735737416935,0.29977,3342.7,3342.6,1.04968203]
[1735737418526,0.29977,3342.7,3342.6,1.04973165]
[1735737418733,0.29977,3342.7,3342.6,0.4417]
[1735737419129,0.75797,3342.7,3342.6,0.4417]
[1735737419429,1.18167,3342.7,3342.6,0.4417]
[1735737420032,0.2998,3342.3,3342.2,40.8]
[1735737420327,0.29981,3342.2,3342.1,3.2078]
[1735737421131,2.27793785,3342.5,3341.9,0.466]
[1735737421326,0.29982,3342.1,3342.0,0.72772]
[1735737421528,0.29982,3342.1,3342.0,1.03583759]
[1735737421833,0.29982,3342.1,3342.0,0.72772]
[1735737422137,0.29982,3342.1,3342.0,0.4279]
[1735737423131,1.19772,3342.1,3342.0,0.4279]
[1735737424036,0.29985,3341.8,3341.7,3.2078]
[1735737424224,2.57778785,3341.8,3341.7,3.2078]
[1735737424423,2.57778785,3341.8,3341.2,0.4299]
[1735737424424,0.29989,3341.3,3341.2,0.4299]
[1735737429647,0.9123,3341.5,3341.2,0.7298]
[1735737429944,0.29988,3341.4,3341.2,0.7298]
[1735737430143,0.29988,3341.4,3341.3,0.29989]
[1735737430348,0.29988,3341.4,3341.3,41.09989]
[1735737431052,2.27793785,3341.8,3341.3,40.8]
[1735737431242,0.29988,3341.5,3341.4,3.2078]
[1735737431949,0.29988,3341.5,3341.4,44.0078]
[1735737432942,0.29988,3341.5,3341.4,3.2078]
[1735737433145,0.29989,3341.3,3341.2,0.4299]
[1735737433451,0.29989,3341.3,3341.2,41.2299]
[1735737433651,0.29989,3341.3,3341.2,0.4299]
[1735737433854,0.8746,3341.4,3341.0,3.2078]
[1735737434041,2.27793785,3341.2,3341.0,3.2078]
[1735737434247,0.29991,3341.1,3341.0,3.2078]
[1735737434747,1.3312,3341.4,3340.6,41.2321]
[1735737435050,0.8746,3341.4,3341.0,0.29991]
[1735737435255,0.29992,3341.0,3340.9,0.29992]
[1735737435643,0.8746,3341.4,3340.8,3.2078]
[1735737435856,0.29992,3341.1,3341.0,0.29992]
[1735737436747,0.29991,3341.2,3341.0,0.29992]
[1735737436948,0.29991,3341.1,3341.0,0.29991]
[1735737438544,0.29991,3341.1,3340.9,0.8594]
[1735737438545,0.8746,3341.4,3340.9,0.8594]
[1735737438748,0.2999,3341.3,3341.2,0.2999]
[1735737438945,0.29991,3341.2,3341.1,0.29991]
[1735737439748,0.29992,3341.1,3341.0,0.29991]
[1735737440450,0.8746,3341.4,3340.9,0.4289]
[1735737440678,0.29993,3340.9,3340.8,3.2078]
[1735737444754,0.29993,3340.9,3340.8,3.50774]
[1735737445551,0.29993,3340.9,3340.8,3.2078]
[1735737446258,0.29993,3340.9,3340.8,3.50774]
[1735737446553,0.29993,3340.9,3340.8,3.2078]
[1735737448851,0.29993,3340.9,3340.8,3.50774]
[1735737450051,0.29993,3340.9,3340.8,3.2078]
[1735737451461,2.57786785,3340.9,3340.8,3.2078]
[1735737452954,2.27793785,3340.9,3340.7,0.29995]
[1735737453162,1.18664,3340.8,3340.7,0.29995]
[1735737454059,0.8867,3340.8,3340.7,0.29995]
[1735737454252,0.29993,3341.0,3340.9,0.29992]
[1735737454458,0.73133,3341.0,3340.9,3.50772]
[1735737456161,0.29993,3341.0,3340.9,3.50772]
[1735737457367,0.29993,3341.0,3340.9,3.2078]
[1735737458760,0.29993,3341.0,3340.6,0.75676]
[1735737458956,0.29995,3340.7,3340.6,0.75676]
[1735737459163,0.29995,3340.7,3340.6,1.06497323]
[1735737459365,0.29995,3340.7,3340.6,0.76501323]
[1735737459662,0.29996,3340.6,3340.5,3.2078]
[1735737459868,1.17896,3340.6,3340.5,3.2078]
[1735737461869,0.879,3340.6,3340.5,3.50777]
[1735737462066,0.29995,3340.7,3340.6,0.29996]
[1735737462566,0.29995,3340.8,3340.7,0.29994]
[1735737464072,0.4347,3340.9,3340.5,3.2078]
[1735737464272,0.4347,3340.9,3340.8,0.29994]
[1735737464472,0.73463,3340.9,3340.8,0.29994]
[1735737466969,0.73463,3340.9,3340.7,0.431]
[1735737466970,2.27793785,3341.5,3340.7,0.431]
[1735737467162,0.2999,3341.3,3341.2,0.29989]
[1735737467867,3.95746,3341.7,3340.9,3.2078]
[1735737467868,3.2078,3341.7,3340.9,3.2078]
[1735737468089,0.8725,3341.8,3341.5,3.2078]
[1735737468268,2.27793785,3342.1,3341.5,3.2078]
[1735737468470,2.72023785,3342.1,3341.6,0.9074]
[1735737468775,0.29985,3341.9,3341.8,0.29985]
[1735737471071,0.29985,3341.8,3341.7,0.29985]
[1735737471674,2.72023785,3342.1,3341.6,0.9074]
[1735737471877,0.29984,3342.0,3341.9,0.29983]
[1735737472079,0.74213,3342.1,3342.0,0.29983]
[1735737472575,0.29983,3342.1,3342.0,0.29983]
[1735737472977,0.8437,3342.3,3341.6,0.9074]
[1735737473278,0.29983,3342.0,3341.9,0.29983]
[1735737479986,0.24353,3342.3,3341.9,0.29983]
[1735737480387,0.24353,3342.3,3341.6,0.9074]
[1735737480584,0.29986,3341.8,3341.7,0.29985]
[1735737480983,0.29986,3341.8,3341.5,3.2078]
[1735737480984,0.29987,3341.6,3341.5,3.2078]
[1735737481184,0.29987,3341.6,3341.5,3.50768]
[1735737482481,0.29987,3341.6,3341.5,3.2078]
[1735737484385,0.29989,3341.3,3341.2,0.2999]
[1735737484585,0.2999,3341.2,3341.1,3.2078]
[1735737484785,1.1898,3341.2,3341.1,3.2078]
[1735737485085,1.3245,3341.2,3340.5,3.2078]
[1735737485394,0.29994,3340.8,3340.5,3.2078]
[1735737485593,2.27793785,3341.1,3340.8,0.29994]
[1735737485892,2.27793785,3341.1,3340.6,1.3464]
[1735737486193,0.29994,3340.8,3340.6,1.64635]
[1735737486389,0.29995,3340.7,3340.6,1.64635]
[1735737486584,0.29995,3340.7,3340.6,0.4495]
[1735737486792,0.29995,3340.7,3340.5,3.2078]
[1735737486793,0.29996,3340.6,3340.5,3.2078]
[1735737486995,0.75666,3340.6,3340.5,3.2078]
[1735737487389,0.29995,3340.7,3340.5,3.81516107]
[1735737487594,0.29995,3340.7,3340.6,0.4472]
[1735737488195,0.75184,3340.9,3340.7,0.29994]
[1735737488392,0.4519,3340.9,3340.7,0.4537]
[1735737488697,0.29994,3340.8,3340.7,0.4537]
[1735737489587,0.29995,3340.7,3340.6,0.8713]
[1735737490394,0.29995,3340.7,3340.6,0.4472]
[1735737490791,0.73045,3340.7,3340.6,0.4472]
[1735737494502,0.29996,3340.6,3340.5,3.2078]
[1735737494898,0.29996,3340.6,3340.3,0.75458]
[1735737494899,3.6383,3340.7,3340.3,0.4546]
[1735737495099,3.6383,3340.7,3339.5,10.20647492]
[1735737495100,0.30003,3339.8,3339.5,7.92853707]
[1735737495297,0.7499,3340.6,3339.5,7.92853707]
[1735737495298,0.30003,3339.9,3339.7,0.4546]
[1735737498104,2.27793785,3339.8,3339.1,3.2078]
[1735737498301,0.30009,3339.1,3338.5,0.23890283]
[1735737498502,2.27793785,3339.2,3338.3,0.30016]
[1735737498503,0.30012,3338.8,3338.3,0.30016]
[1735737498704,0.30012,3338.8,3338.4,0.30015]
[1735737498901,0.30012,3338.8,3338.5,3.2078]
[1735737499306,0.8934,3339.0,3338.5,3.50794]
[1735737499307,0.30011,3338.9,3338.5,3.50794]
[1735737499606,0.30013,3338.7,3338.6,0.4576]
[1735737500201,2.27793785,3338.8,3338.5,3.2078]
[1735737500403,0.30014,3338.6,3338.5,3.2078]
[1735737500705,0.30013,3338.7,3338.5,3.2078]
[1735737502303,0.30014,3338.6,3338.5,3.2078]
[1735737503708,0.30016,3338.3,3338.2,41.2669]
[1735737503906,2.27793785,3338.4,3338.2,41.2669]
[1735737504317,0.30016,3338.3,3338.2,41.2669]
[1735737505001,0.30017,3338.2,3338.1,3.2078]
[1735737505204,1.18417,3338.2,3338.1,3.2078]
[1735737509816,0.30017,3338.2,3338.1,3.2078]
[1735737511012,2.27793785,3338.4,3337.8,0.9109]
[1735737511305,0.30021,3337.8,3337.7,0.4609]
[1735737511512,2.57812785,3338.0,3337.8,0.30021]
[1735737511912,2.27793785,3338.0,3337.7,3.6687]
[1735737512209,0.3002,3337.9,3337.7,3.96891]
[1735737512410,2.27793785,3338.0,3337.7,3.6687]
[1735737512615,0.3002,3337.9,3337.7,3.96891]
[1735737512812,0.30021,3337.8,3337.7,3.6687]
[1735737513013,0.3002,3337.9,3337.7,3.96891]
[1735737513416,0.3002,3337.9,3337.7,3.6687]
[1735737513612,0.3002,3337.9,3337.7,3.96891]
[1735737514116,2.27793785,3338.0,3337.7,3.6687]
[1735737514318,2.57812785,3338.0,3337.9,0.3002]
[1735737514710,2.57812785,3338.0,3337.8,0.3002]
[1735737515109,2.27793785,3338.0,3337.9,0.3002]
[1735737515315,2.57812785,3338.0,3337.7,3.6687]
[1735737515613,2.27793785,3338.0,3337.9,0.3002]
[1735737518814,2.57813785,3338.0,3337.8,0.30021]
[1735737519012,2.57813785,3338.0,3337.9,0.3002]
[1735737519218,0.3002,3337.9,3337.8,0.3002]
[1735737519523,2.27793785,3338.0,3337.7,3.6687]
[1735737519721,2.57813785,3338.0,3337.9,0.3002]
[1735737520020,2.57813785,3338.0,3337.7,3.6687]
[1735737520021,0.3002,3337.9,3337.8,0.3002]
[1735737520618,2.57812785,3338.0,3337.9,0.3002]
[1735737521418,2.27793785,3338.0,3337.7,3.6687]
[1735737521722,0.3002,3337.9,3337.8,0.30021]
[1735737522023,0.30021,3337.8,3337.7,3.96891]
[1735737522824,0.30021,3337.8,3337.7,3.6687]
[1735737523020,0.9001,3337.9,3337.3,3.2078]
[1735737523323,2.57817785,3337.4,3337.3,3.2078]
[1735737524425,0.30023,3337.6,3337.5,0.30023]
[1735737525124,3.16433785,3337.8,3337.3,3.666]
[1735737525325,3.16433785,3337.8,3337.4,0.30731423]
[1735737525522,3.16433785,3337.8,3337.3,3.666]
[1735737525523,0.30023,3337.6,3337.5,0.60753678]
[1735737526019,3.46455785,3337.8,3337.7,0.30022]
[1735737526420,0.30022,3337.7,3337.6,0.30022]
[1735737526625,0.30023,3337.6,3337.5,0.30023]
[1735737526924,0.30023,3337.6,3337.5,0.60788294]
[1735737527419,3.46454785,3337.8,3337.7,0.30022]
[1735737527824,0.30023,3337.7,3337.6,0.30022]
[1735737528026,0.30023,3337.7,3337.6,0.30792457]
[1735737528944,3.16433785,3337.8,3337.3,3.2078]
[1735737529124,2.27793785,3337.5,3337.4,0.30798389]
[1735737529317,2.57816785,3337.5,3337.4,0.60822389]
[1735737530127,2.57816785,3337.5,3337.4,0.30798389]
[1735737531628,2.57816785,3337.5,3337.4,0.30742444]
[1735737533229,2.57816785,3337.5,3337.4,0.60766444]
[1735737533419,2.57816785,3337.5,3337.4,0.30742444]
[1735737534825,2.27793785,3337.5,3337.1,0.30027]
[1735737535032,0.30025,3337.3,3337.2,0.30752949]
[1735737535632,0.76025,3337.3,3337.2,5.03970927]